[Event "DSAM Bad Wildungen 2024"]
[Site "Bad Wildungen"]
[Date "2024.08.03"]
[Round "5.6"]
[White "Sydykov, Bayastan"]
[Black "Zimmermann, Klemens"]
[Result "1-0"]
[Annotator "ChessBase"]
[ECO "B51"]
[WhiteElo "2246"]
[BlackElo "2198"]
[PlyCount "71"]
[EventDate "2024.07.31"]
[EventCountry "GER"]
[SourceTitle "playchess.com"]
[Source "ChessBase"]
[SourceQuality "1"]
[TimeControl "40/5400+30:900+30"]

1. e4 {[%emt 0:00:05]} c5 {[%emt 0:00:08]} 2. Nf3 {[%emt 0:00:04]} d6 {[%emt 0:00:04]} 3. Bb5+ {[%emt 0:00:06]} Nc6 {[%emt 0:00:24]} 4. O-O {[%emt 0:00:06]} Bd7 {[%emt 0:00:18]} 5. Re1 {[%emt 0:00:29]} g6 {[%emt 0:00:19]} 6. c3 {[%emt 0:06:05]} Bg7 {[%emt 0:05:12]} 7. d4 {[%emt 0:09:31]} Qb6 {[%emt 0:04:19]} 8. Bxc6 {[%emt 0:08:01]} Qxc6 {[%emt 0:05:08]} 9. d5 {[%emt 0:04:38]} Qc7 {[%emt 0:00:12]} 10. Bf4 {[%emt 0:00:51]} f6 {[%emt 0:05:26]} 11. c4 {[%emt 0:18:44]} h5 {[%emt 0:03:28]} 12. Nc3 {[%emt 0:03:36]} h4 {[%emt 0:03:43]} 13. Qc2 {[%emt 0:14:07]} Qc8 {[%emt 0:03:52]} 14. Rf1 {[%emt 0:03:32]} Bh3 {[%emt 0:12:20]} 15. Ne1 {[%emt 0:05:28]} Qg4 {[%emt 0:05:01]} 16. Bd2 {[%emt 0:04:03]} Bxg2 {[%emt 0:00:42]} 17. f3 {[%emt 0:00:15]} Bxf3+ {[%emt 0:26:16]} 18. Kf2 {[%emt 0:00:06]} h3 {[%emt 0:00:12]} 19. Nxf3 {[%emt 0:00:34]} Qg2+ {[%emt 0:00:04]} 20. Ke1 {[%emt 0:00:22]} g5 {[%emt 0:00:30]} 21. Qd3 {[%emt 0:03:40]} g4 {[%emt 0:01:49]} 22. Rg1 {[%emt 0:00:59]} gxf3 {[%emt 0:03:22]} 23. Rxg2 {[%emt 0:00:07]} hxg2 {[%emt 0:00:05]} 24. Kf2 {[%emt 0:00:17]} Rh3 {[%emt 0:03:51]} 25. Rg1 {[%emt 0:06:50]} f5 {[%emt 0:00:07]} 26. e5 {[%emt 0:00:11]} Bxe5 {[%emt 0:00:53]} 27. Qxf5 {[%emt 0:00:15]} Rxh2 {[%emt 0:12:16]} 28. Nb5 {[%emt 0:03:33]} Nf6 {[%emt 0:02:37]} 29. Nc7+ {[%emt 0:01:55]} Kf7 {[%emt 0:00:14]} 30. Nxa8 {[%emt 0:02:51]} Rh1 {[%emt 0:01:13]} 31. Be3 {[%emt 0:03:39]} Bh2 {[%emt 0:00:28]} 32. Kxf3 {[%emt 0:00:43]} Bxg1 {[%emt 0:00:32]} 33. Kxg2 {[%emt 0:00:30]} Rh5 {[%emt 0:00:22]} 34. Qe6+ {[%emt 0:00:07]} Kg6 {[%emt 0:00:12]} 35. Kxg1 {[%emt 0:00:31]} Re5 {[%emt 0:00:15]} 36. Qh3 {[%emt 0:00:18]} 1-0

[Event "DSAM Bad Wildungen 2024"]
[Site "Bad Wildungen"]
[Date "2024.08.03"]
[Round "5.7"]
[White "Bender, Wolfgang"]
[Black "Reinecke, Katharina"]
[Result "0-1"]
[Annotator "ChessBase"]
[ECO "A00"]
[WhiteElo "1923"]
[BlackElo "1949"]
[PlyCount "85"]
[EventDate "2024.07.31"]
[EventCountry "GER"]
[SourceTitle "playchess.com"]
[Source "ChessBase"]
[SourceQuality "1"]
[TimeControl "40/5400+30:900+30"]

1. b4 {[%emt 0:00:07]} e5 {[%emt 0:00:32]} 2. a3 {[%emt 0:00:06]} d5 {[%emt 0:00:58]} 3. Bb2 {[%emt 0:00:06]} Bd6 {[%emt 0:00:37]} 4. e3 {[%emt 0:00:21]} Nf6 {[%emt 0:01:27]} 5. c4 {[%emt 0:00:26]} c6 {[%emt 0:00:54]} 6. Nf3 {[%emt 0:00:26]} Nbd7 {[%emt 0:01:11]} 7. cxd5 {[%emt 0:00:29]} Nxd5 {[%emt 0:05:01]} 8. Nc3 {[%emt 0:01:39]} Nxc3 {[%emt 0:01:44]} 9. dxc3 {[%emt 0:00:55]} Qe7 {[%emt 0:04:51]} 10. e4 {[%emt 0:07:27]} O-O {[%emt 0:02:54]} 11. Be2 {[%emt 0:02:32]} f5 {[%emt 0:05:54]} 12. Nd2 {[%emt 0:09:20]} Nf6 {[%emt 0:03:14]} 13. exf5 {[%emt 0:01:56]} Bxf5 {[%emt 0:02:12]} 14. Nc4 {[%emt 0:00:14]} Bc7 {[%emt 0:03:47]} 15. Ne3 {[%emt 0:00:29]} Rad8 {[%emt 0:07:29]} 16. Qb3+ {[%emt 0:05:24]} Be6 {[%emt 0:01:53]} 17. Bc4 {[%emt 0:00:05]} Nd5 {[%emt 0:01:57]} 18. O-O {[%emt 0:04:54]} Rf6 {[%emt 0:06:46]} 19. Rad1 {[%emt 0:01:23]} Qf7 {[%emt 0:02:11]} 20. Bxd5 {[%emt 0:03:06]} cxd5 {[%emt 0:03:59]} 21. c4 {[%emt 0:02:55]} d4 {[%emt 0:01:20]} 22. Nd5 {[%emt 0:00:40]} Bxd5 {[%emt 0:01:47]} 23. cxd5 {[%emt 0:00:08]} Qxd5 {[%emt 0:03:08]} 24. Qxd5+ {[%emt 0:00:36]} Rxd5 {[%emt 0:00:09]} 25. Rc1 {[%emt 0:00:18]} Bb6 {[%emt 0:00:47]} 26. a4 {[%emt 0:00:49]} a5 {[%emt 0:02:02]} 27. Rc8+ {[%emt 0:00:35]} Kf7 {[%emt 0:01:49]} 28. Rb8 {[%emt 0:00:31]} Rd7 {[%emt 0:04:32]} 29. bxa5 {[%emt 0:00:35]} Bxa5 {[%emt 0:00:27]} 30. g3 {[%emt 0:01:38]} Re6 {[%emt 0:06:58]} 31. Rd1 {[%emt 0:03:20]} d3 {[%emt 0:01:22]} 32. Rc8 {[%emt 0:01:03]} e4 {[%emt 0:02:15]} 33. Rc4 {[%emt 0:02:48]} h6 {[%emt 0:07:18]} 34. Bd4 {[%emt 0:02:35]} Rc6 {[%emt 0:02:32]} 35. Rxc6 {[%emt 0:00:45]} bxc6 {[%emt 0:00:06]} 36. Be3 {[%emt 0:00:19]} Bb4 {[%emt 0:01:00]} 37. f3 {[%emt 0:00:44]} exf3 {[%emt 0:01:33]} 38. Kf2 {[%emt 0:00:11]} c5 {[%emt 0:00:45]} 39. Kxf3 {[%emt 0:00:32]} c4 {[%emt 0:01:04]} 40. Ke4 {[%emt 0:00:17]} d2 {[%emt 0:02:27]} 41. Bd4 {[%emt 0:19:32]} c3 {[%emt 0:16:22]} 42. Kd3 {[%emt 0:00:05]} Rxd4+ {[%emt 0:01:28]} 43. Kxd4 {[%emt 0:44:39]} 0-1

[Event "DSAM Bad Wildungen 2024"]
[Site "Bad Wildungen"]
[Date "2024.08.03"]
[Round "5.8"]
[White "Herter, Arne"]
[Black "Bartelt, Max Peter"]
[Result "0-1"]
[Annotator "ChessBase"]
[ECO "C54"]
[WhiteElo "2065"]
[BlackElo "2069"]
[PlyCount "99"]
[EventDate "2024.07.31"]
[EventCountry "GER"]
[SourceTitle "playchess.com"]
[Source "ChessBase"]
[SourceQuality "1"]
[TimeControl "40/5400+30:900+30"]

1. e4 {[%emt 0:00:02]} e5 {[%emt 0:00:16]} 2. Nf3 {[%emt 0:00:03]} Nc6 {[%emt 0:00:08]} 3. Bc4 {[%emt 0:00:03]} Bc5 {[%emt 0:00:06]} 4. d3 {[%emt 0:00:06]} h6 {[%emt 0:00:19]} 5. O-O {[%emt 0:00:35]} Nf6 {[%emt 0:00:05]} 6. Nbd2 {[%emt 0:00:41]} O-O {[%emt 0:00:12]} 7. h3 {[%emt 0:00:03]} d6 {[%emt 0:00:30]} 8. c3 {[%emt 0:00:05]} a6 {[%emt 0:01:27]} 9. a4 {[%emt 0:00:15]} Ba7 {[%emt 0:00:25]} 10. Re1 {[%emt 0:00:16]} Re8 {[%emt 0:01:33]} 11. Nf1 {[%emt 0:01:35]} Be6 {[%emt 0:00:22]} 12. Bxe6 {[%emt 0:02:57]} Rxe6 {[%emt 0:01:35]} 13. Ng3 {[%emt 0:10:27]} d5 {[%emt 0:11:03]} 14. Qc2 {[%emt 0:03:53]} Qd7 {[%emt 0:11:11]} 15. b4 {[%emt 0:10:21]} Ne7 {[%emt 0:13:46]} 16. Bb2 {[%emt 0:08:55]} Re8 {[%emt 0:04:42]} 17. Rad1 {[%emt 0:02:16]} Qc8 {[%emt 0:04:06]} 18. c4 {[%emt 0:19:32]} d4 {[%emt 0:08:57]} 19. Kh2 {[%emt 0:02:53]} c5 {[%emt 0:06:24]} 20. b5 {[%emt 0:03:30]} a5 {[%emt 0:01:20]} 21. Bc1 {[%emt 0:00:02]} b6 {[%emt 0:00:57]} 22. Nh4 {[%emt 0:02:54]} Bb8 {[%emt 0:01:16]} 23. Nhf5 {[%emt 0:00:44]} Nxf5 {[%emt 0:01:43]} 24. Nxf5 {[%emt 0:00:20]} Kh7 {[%emt 0:03:23]} 25. g4 {[%emt 0:00:47]} Ng8 {[%emt 0:04:12]} 26. Qd2 {[%emt 0:01:29]} Bc7 {[%emt 0:03:46]} 27. h4 {[%emt 0:02:29]} Bd8 {[%emt 0:01:09]} 28. Kh3 {[%emt 0:03:14]} g5 {[%emt 0:04:20]} 29. hxg5 {[%emt 0:00:56]} Bxg5 {[%emt 0:00:20]} 30. Qc2 {[%emt 0:00:09]} Bxc1 {[%emt 0:01:42]} 31. Qxc1 {[%emt 0:00:05]} Ne7 {[%emt 0:01:08]} 32. Kg3 {[%emt 0:01:07]} Rg8 {[%emt 0:01:10]} 33. Kf3 {[%emt 0:00:46]} Qf8 {[%emt 0:02:23]} 34. Rh1 {[%emt 0:04:14]} Reg6 {[%emt 0:02:36]} 35. Nxh6 {[%emt 0:03:42]} Rxh6 {[%emt 0:00:36]} 36. Rxh6+ {[%emt 0:00:04]} Qxh6 {[%emt 0:01:38]} 37. Rh1 {[%emt 0:00:03]} Rg6 {[%emt 0:01:32]} 38. Rxh6+ {[%emt 0:01:56]} Rxh6 {[%emt 0:00:09]} 39. Qg5 {[%emt 0:01:44]} f6 {[%emt 0:00:18]} 40. Qd2 {[%emt 0:00:48]} Ng6 {[%emt 0:00:42]} 41. g5 {[%emt 0:16:48]} Rh4 {[%emt 0:16:53]} 42. gxf6 {[%emt 0:01:35]} Rf4+ {[%emt 0:01:29]} 43. Kg3 {[%emt 0:00:32]} Rxf6 {[%emt 0:00:31]} 44. Qg5 {[%emt 0:01:07]} Rf4 {[%emt 0:01:37]} 45. Qd8 {[%emt 0:00:45]} Rf7 {[%emt 0:02:29]} 46. Qxb6 {[%emt 0:01:33]} Nf4 {[%emt 0:00:14]} 47. Qxa5 {[%emt 0:02:20]} Nxd3 {[%emt 0:00:48]} 48. b6 {[%emt 0:00:15]} Nxf2 {[%emt 0:01:02]} 49. Qa7 {[%emt 0:00:48]} Nxe4+ {[%emt 0:00:20]} 50. Kh2 {[%emt 0:00:09]} 0-1

[Event "DSAM Bad Wildungen 2024"]
[Site "Bad Wildungen"]
[Date "2024.08.03"]
[Round "5.9"]
[White "Kamp, Adrian"]
[Black "Musiienko, Tymur"]
[Result "1-0"]
[Annotator "ChessBase"]
[ECO "A11"]
[WhiteElo "2120"]
[BlackElo "2093"]
[PlyCount "83"]
[EventDate "2024.07.31"]
[EventCountry "GER"]
[SourceTitle "playchess.com"]
[Source "ChessBase"]
[SourceQuality "1"]
[TimeControl "40/5400+30:900+30"]

1. c4 {[%emt 0:00:06]} c6 {[%emt 0:00:20]} 2. Nf3 {[%emt 0:01:08]} d5 {[%emt 0:00:09]} 3. cxd5 {[%emt 0:00:55]} cxd5 {[%emt 0:00:03]} 4. g3 {[%emt 0:00:45]} Nc6 {[%emt 0:00:49]} 5. Bg2 {[%emt 0:01:09]} e5 {[%emt 0:01:41]} 6. d3 {[%emt 0:05:20]} Nf6 {[%emt 0:02:58]} 7. O-O {[%emt 0:01:09]} h6 {[%emt 0:05:22]} 8. b3 {[%emt 0:02:49]} Bd6 {[%emt 0:03:09]} 9. Bb2 {[%emt 0:03:30]} O-O {[%emt 0:00:14]} 10. Nbd2 {[%emt 0:07:13]} Be6 {[%emt 0:00:35]} 11. e4 {[%emt 0:01:47]} d4 {[%emt 0:04:46]} 12. Nc4 {[%emt 0:02:21]} Bc7 {[%emt 0:04:34]} 13. a4 {[%emt 0:04:27]} a6 {[%emt 0:01:57]} 14. Ba3 {[%emt 0:04:14]} Re8 {[%emt 0:00:11]} 15. Ne1 {[%emt 0:04:52]} b5 {[%emt 0:03:46]} 16. Nd2 {[%emt 0:00:30]} Ba5 {[%emt 0:00:36]} 17. Rb1 {[%emt 0:02:51]} Bc3 {[%emt 0:15:21]} 18. h3 {[%emt 0:13:33]} Qa5 {[%emt 0:02:35]} 19. Nef3 {[%emt 0:03:54]} Nd7 {[%emt 0:04:36]} 20. Bd6 {[%emt 0:05:20]} f6 {[%emt 0:04:34]} 21. Qc2 {[%emt 0:00:24]} Rac8 {[%emt 0:05:23]} 22. Rfc1 {[%emt 0:03:19]} b4 {[%emt 0:03:18]} 23. Nc4 {[%emt 0:01:15]} Bxc4 {[%emt 0:00:22]} 24. dxc4 {[%emt 0:01:24]} Re6 {[%emt 0:00:30]} 25. c5 {[%emt 0:00:13]} Nxc5 {[%emt 0:00:12]} 26. Bxc5 {[%emt 0:00:07]} Qxc5 {[%emt 0:00:03]} 27. Ne1 {[%emt 0:00:13]} Qd6 {[%emt 0:03:07]} 28. Nd3 {[%emt 0:00:30]} Re7 {[%emt 0:01:38]} 29. Qe2 {[%emt 0:01:00]} Rf8 {[%emt 0:01:11]} 30. Kh2 {[%emt 0:02:53]} g6 {[%emt 0:00:35]} 31. Rf1 {[%emt 0:03:59]} Kg7 {[%emt 0:01:12]} 32. f3 {[%emt 0:03:33]} Nd8 {[%emt 0:01:04]} 33. f4 {[%emt 0:02:17]} exf4 {[%emt 0:13:56]} 34. gxf4 {[%emt 0:00:36]} Nf7 {[%emt 0:01:09]} 35. Kh1 {[%emt 0:01:05]} f5 {[%emt 0:02:09]} 36. e5 {[%emt 0:00:54]} Qc7 {[%emt 0:02:30]} 37. Rg1 {[%emt 0:00:37]} Kh7 {[%emt 0:01:38]} 38. Rbf1 {[%emt 0:01:13]} g5 {[%emt 0:01:48]} 39. Bd5 {[%emt 0:01:25]} gxf4 {[%emt 0:05:33]} 40. Qh5 {[%emt 0:01:59]} Nh8 {[%emt 0:00:01]} 41. Qxf5+ {[%emt 0:15:38]} Rxf5 {[%emt 0:15:34]} 42. Bg8# {[%emt 0:14:03]} 1-0

[Event "DSAM Bad Wildungen 2024"]
[Site "Bad Wildungen"]
[Date "2024.08.03"]
[Round "5.10"]
[White "Kull, Florian"]
[Black "Buchinger, Alexis"]
[Result "1-0"]
[Annotator "ChessBase"]
[ECO "A16"]
[WhiteElo "2113"]
[BlackElo "2116"]
[PlyCount "54"]
[EventDate "2024.07.31"]
[EventCountry "GER"]
[SourceTitle "playchess.com"]
[Source "ChessBase"]
[SourceQuality "1"]
[TimeControl "40/5400+30:900+30"]

1. Nf3 {[%emt 0:00:41]} Nf6 {[%emt 0:00:04]} 2. g3 {[%emt 0:00:28]} g6 {[%emt 0:00:13]} 3. Bg2 {[%emt 0:00:11]} Bg7 {[%emt 0:00:04]} 4. O-O {[%emt 0:00:20]} O-O {[%emt 0:00:06]} 5. c4 {[%emt 0:00:25]} c6 {[%emt 0:00:44]} 6. Nc3 {[%emt 0:00:35]} d6 {[%emt 0:00:20]} 7. d3 {[%emt 0:00:38]} Qa5 {[%emt 0:00:56]} 8. h3 {[%emt 0:03:38]} e5 {[%emt 0:01:31]} 9. Bd2 {[%emt 0:02:16]} Qc7 {[%emt 0:04:27]} 10. b4 {[%emt 0:02:16]} a5 {[%emt 0:01:14]} 11. bxa5 {[%emt 0:05:19]} Qxa5 {[%emt 0:02:44]} 12. Rb1 {[%emt 0:08:03]} Nbd7 {[%emt 0:07:26]} 13. Nb5 {[%emt 0:02:32]} Qd8 {[%emt 0:03:52]} 14. Nxd6 {[%emt 0:00:19]} Rxa2 {[%emt 0:00:47]} 15. Nxc8 {[%emt 0:13:04]} Qxc8 {[%emt 0:00:26]} 16. Qb3 {[%emt 0:00:10]} Ra7 {[%emt 0:01:54]} 17. Bc3 {[%emt 0:01:36]} Qc7 {[%emt 0:11:18]} 18. Qb2 {[%emt 0:02:20]} Re8 {[%emt 0:18:00]} 19. Ra1 {[%emt 0:02:57]} Rxa1 {[%emt 0:17:42]} 20. Rxa1 {[%emt 0:00:02]} b6 {[%emt 0:08:59]} 21. Ra3 {[%emt 0:02:17]} Bf8 {[%emt 0:04:22]} 22. Ra2 {[%emt 0:00:15]} Bc5 {[%emt 0:07:09]} 23. e3 {[%emt 0:03:31]} Bd6 {[%emt 0:07:06]} 24. Qa1 {[%emt 0:05:23]} Nc5 {[%emt 0:00:34]} 25. d4 {[%emt 0:03:57]} exd4 {[%emt 0:00:22]} 26. Bxd4 {[%emt 0:03:49]} Nfe4 {[%emt 0:00:39]} 27. Ra8 {[%emt 0:03:07]} Qe7 {[%emt 0:00:00]} 1-0

[Event "DSAM Bad Wildungen 2024"]
[Site "Bad Wildungen"]
[Date "2024.08.03"]
[Round "5.11"]
[White "Tueckmantel, Rene"]
[Black "Ermel, Dirk"]
[Result "1/2-1/2"]
[Annotator "ChessBase"]
[ECO "A29"]
[WhiteElo "2057"]
[BlackElo "2046"]
[PlyCount "44"]
[EventDate "2024.07.31"]
[EventCountry "GER"]
[SourceTitle "playchess.com"]
[Source "ChessBase"]
[SourceQuality "1"]
[TimeControl "40/5400+30:900+30"]

1. c4 {[%emt 0:00:04]} e5 {[%emt 0:00:49]} 2. Nc3 {[%emt 0:00:16]} Nf6 {[%emt 0:00:09]} 3. g3 {[%emt 0:00:16]} d5 {[%emt 0:00:41]} 4. cxd5 {[%emt 0:00:08]} Nxd5 {[%emt 0:00:09]} 5. Bg2 {[%emt 0:00:13]} Be6 {[%emt 0:00:27]} 6. Nf3 {[%emt 0:05:31]} Nc6 {[%emt 0:00:15]} 7. d3 {[%emt 0:01:12]} Be7 {[%emt 0:00:21]} 8. O-O {[%emt 0:00:20]} O-O {[%emt 0:00:16]} 9. Bd2 {[%emt 0:02:52]} Nb6 {[%emt 0:04:18]} 10. a3 {[%emt 0:07:33]} f5 {[%emt 0:01:31]} 11. Na4 {[%emt 0:04:36]} Nxa4 {[%emt 0:16:01]} 12. Qxa4 {[%emt 0:00:28]} Nd4 {[%emt 0:03:17]} 13. Nxd4 {[%emt 0:02:22]} Qxd4 {[%emt 0:01:13]} 14. Qc2 {[%emt 0:02:17]} c6 {[%emt 0:03:42]} 15. Be3 {[%emt 0:02:16]} Qd7 {[%emt 0:00:52]} 16. Bc5 {[%emt 0:01:59]} Bd5 {[%emt 0:04:53]} 17. Bxd5+ {[%emt 0:08:16]} cxd5 {[%emt 0:00:10]} 18. Bxe7 {[%emt 0:00:26]} Qxe7 {[%emt 0:01:07]} 19. Rac1 {[%emt 0:00:57]} Qd7 {[%emt 0:05:42]} 20. Qc7 {[%emt 0:02:41]} Qxc7 {[%emt 0:01:31]} 21. Rxc7 {[%emt 0:00:03]} Rf7 {[%emt 0:00:17]} 22. Rfc1 {[%emt 0:04:41]} Re8 {[%emt 0:00:20]} 1/2-1/2

[Event "DSAM Bad Wildungen 2024"]
[Site "Bad Wildungen"]
[Date "2024.08.03"]
[Round "5.12"]
[White "Vladov, Arsenii"]
[Black "Belz, Frank-Martin"]
[Result "1-0"]
[Annotator "ChessBase"]
[ECO "A07"]
[WhiteElo "2063"]
[BlackElo "2015"]
[PlyCount "75"]
[EventDate "2024.07.31"]
[EventCountry "GER"]
[SourceTitle "playchess.com"]
[Source "ChessBase"]
[SourceQuality "1"]
[TimeControl "40/5400+30:900+30"]

1. Nf3 {[%emt 0:00:03]} d5 {[%emt 0:00:07]} 2. g3 {[%emt 0:00:04]} Nf6 {[%emt 0:00:19]} 3. Bg2 {[%emt 0:00:06]} Bg4 {[%emt 0:00:24]} 4. h3 {[%emt 0:00:28]} Bh5 {[%emt 0:00:30]} 5. O-O {[%emt 0:00:11]} e6 {[%emt 0:00:19]} 6. d3 {[%emt 0:00:11]} Be7 {[%emt 0:00:21]} 7. c4 {[%emt 0:00:24]} O-O {[%emt 0:00:47]} 8. Qb3 {[%emt 0:00:48]} Qc8 {[%emt 0:01:21]} 9. Nc3 {[%emt 0:01:19]} c6 {[%emt 0:01:00]} 10. Kh2 {[%emt 0:05:47]} Nbd7 {[%emt 0:00:32]} 11. cxd5 {[%emt 0:00:13]} exd5 {[%emt 0:04:21]} 12. e4 {[%emt 0:02:52]} dxe4 {[%emt 0:09:17]} 13. dxe4 {[%emt 0:00:09]} Nc5 {[%emt 0:04:45]} 14. Qc2 {[%emt 0:00:07]} Rd8 {[%emt 0:05:26]} 15. Be3 {[%emt 0:01:30]} Ne6 {[%emt 0:07:18]} 16. Rfd1 {[%emt 0:06:54]} Qc7 {[%emt 0:06:05]} 17. Rxd8+ {[%emt 0:04:20]} Rxd8 {[%emt 0:01:08]} 18. Rd1 {[%emt 0:00:03]} Rxd1 {[%emt 0:06:39]} 19. Qxd1 {[%emt 0:00:08]} Bc5 {[%emt 0:00:38]} 20. Bxc5 {[%emt 0:00:50]} Nxc5 {[%emt 0:00:04]} 21. Qd4 {[%emt 0:00:26]} b6 {[%emt 0:05:10]} 22. Qe5 {[%emt 0:10:24]} Ne6 {[%emt 0:06:00]} 23. Qxc7 {[%emt 0:00:06]} Nxc7 {[%emt 0:00:06]} 24. Ne5 {[%emt 0:00:04]} c5 {[%emt 0:04:42]} 25. f4 {[%emt 0:00:49]} Nfe8 {[%emt 0:02:36]} 26. Nc6 {[%emt 0:00:55]} f6 {[%emt 0:01:33]} 27. Nxa7 {[%emt 0:00:11]} Bf7 {[%emt 0:00:10]} 28. a3 {[%emt 0:01:36]} Bc4 {[%emt 0:00:24]} 29. Na4 {[%emt 0:01:02]} Na8 {[%emt 0:02:36]} 30. e5 {[%emt 0:07:59]} Nec7 {[%emt 0:02:42]} 31. exf6 {[%emt 0:00:14]} gxf6 {[%emt 0:00:02]} 32. Nc8 {[%emt 0:00:15]} Bb3 {[%emt 0:10:30]} 33. Naxb6 {[%emt 0:00:50]} Nxb6 {[%emt 0:00:10]} 34. Nxb6 {[%emt 0:00:04]} Kf7 {[%emt 0:00:55]} 35. Bf1 {[%emt 0:00:27]} Ke7 {[%emt 0:01:15]} 36. Bc4 {[%emt 0:00:40]} Bxc4 {[%emt 0:01:17]} 37. Nxc4 {[%emt 0:00:05]} Ke6 {[%emt 0:00:02]} 38. Ne3 {[%emt 0:00:26]} 1-0

[Event "DSAM Bad Wildungen 2024"]
[Site "Bad Wildungen"]
[Date "2024.08.03"]
[Round "5.13"]
[White "von Kiedrowski, Klemens"]
[Black "Menzel, Maximilian"]
[Result "0-1"]
[Annotator "ChessBase"]
[ECO "A03"]
[WhiteElo "2040"]
[BlackElo "2108"]
[PlyCount "108"]
[EventDate "2024.07.31"]
[EventCountry "GER"]
[SourceTitle "playchess.com"]
[Source "ChessBase"]
[SourceQuality "1"]
[TimeControl "40/5400+30:900+30"]

1. e3 {[%emt 0:00:04]} Nf6 {[%emt 0:01:16]} 2. f4 {[%emt 0:00:46]} d5 {[%emt 0:01:10]} 3. Nf3 {[%emt 0:00:30]} g6 {[%emt 0:00:58]} 4. b3 {[%emt 0:00:27]} Bg7 {[%emt 0:00:07]} 5. Bb2 {[%emt 0:00:02]} c5 {[%emt 0:06:40]} 6. Bb5+ {[%emt 0:06:57]} Bd7 {[%emt 0:01:13]} 7. Qe2 {[%emt 0:01:13]} O-O {[%emt 0:01:26]} 8. Bxd7 {[%emt 0:00:40]} Qxd7 {[%emt 0:02:25]} 9. d3 {[%emt 0:04:14]} Nc6 {[%emt 0:02:59]} 10. Nbd2 {[%emt 0:03:43]} d4 {[%emt 0:13:08]} 11. e4 {[%emt 0:06:53]} e5 {[%emt 0:19:41]} 12. Nxe5 {[%emt 0:07:41]} Nxe5 {[%emt 0:02:44]} 13. fxe5 {[%emt 0:00:02]} Ng4 {[%emt 0:00:17]} 14. Nf3 {[%emt 0:01:05]} b5 {[%emt 0:11:48]} 15. a4 {[%emt 0:12:14]} a6 {[%emt 0:03:51]} 16. Bc1 {[%emt 0:02:40]} Nxe5 {[%emt 0:03:17]} 17. O-O {[%emt 0:02:24]} Nc6 {[%emt 0:04:35]} 18. Bd2 {[%emt 0:02:57]} Rae8 {[%emt 0:03:49]} 19. Qf2 {[%emt 0:05:00]} f5 {[%emt 0:03:14]} 20. exf5 {[%emt 0:02:16]} Rxf5 {[%emt 0:01:42]} 21. axb5 {[%emt 0:01:52]} axb5 {[%emt 0:00:19]} 22. Rfe1 {[%emt 0:01:18]} Ne5 {[%emt 0:01:56]} 23. Nxe5 {[%emt 0:00:50]} Bxe5 {[%emt 0:00:46]} 24. Rxe5 {[%emt 0:05:51]} Rfxe5 {[%emt 0:00:53]} 25. Qf4 {[%emt 0:10:06]} Rf5 {[%emt 0:02:16]} 26. Qh4 {[%emt 0:01:31]} Qe7 {[%emt 0:01:33]} 27. Qg3 {[%emt 0:02:52]} Qe5 {[%emt 0:03:03]} 28. Qh4 {[%emt 0:01:04]} Rh5 {[%emt 0:01:29]} 29. Qf4 {[%emt 0:01:20]} Rf8 {[%emt 0:01:19]} 30. Qxe5 {[%emt 0:03:23]} Rxe5 {[%emt 0:00:01]} 31. Bh6 {[%emt 0:00:20]} Rfe8 {[%emt 0:01:03]} 32. Ra7 {[%emt 0:00:37]} R8e7 {[%emt 0:02:14]} 33. Ra8+ {[%emt 0:01:31]} Re8 {[%emt 0:00:08]} 34. Ra7 {[%emt 0:00:16]} Re2 {[%emt 0:00:52]} 35. Rg7+ {[%emt 0:02:18]} Kh8 {[%emt 0:00:19]} 36. Rc7 {[%emt 0:01:58]} Rxc2 {[%emt 0:02:07]} 37. h3 {[%emt 0:00:29]} c4 {[%emt 0:01:27]} 38. bxc4 {[%emt 0:04:58]} bxc4 {[%emt 0:00:12]} 39. dxc4 {[%emt 0:01:30]} d3 {[%emt 0:00:58]} 40. Rd7 {[%emt 0:00:43]} Rxc4 {[%emt 0:00:24]} 41. Rxd3 {[%emt 0:16:19]} Rce4 {[%emt 0:02:56]} 42. Bg5 {[%emt 0:00:00]} Kg8 {[%emt 0:00:46]} 43. Rd7 {[%emt 0:00:00]} Re2 {[%emt 0:02:00]} 44. Bf6 {[%emt 0:00:00]} R8e6 {[%emt 0:00:48]} 45. Bg5 {[%emt 0:00:00]} Ra2 {[%emt 0:05:31]} 46. Rd8+ {[%emt 0:00:00]} Kf7 {[%emt 0:00:21]} 47. Rd7+ {[%emt 0:00:00]} Kf8 {[%emt 0:00:53]} 48. Rd8+ {[%emt 0:02:49]} Re8 {[%emt 0:00:18]} 49. Rxe8+ {[%emt 0:02:07]} Kxe8 {[%emt 0:00:52]} 50. Kh2 {[%emt 0:00:15]} Kf7 {[%emt 0:00:14]} 51. Kg3 {[%emt 0:00:31]} Ke6 {[%emt 0:00:24]} 52. h4 {[%emt 0:00:26]} Kf5 {[%emt 0:00:14]} 53. Kf3 {[%emt 0:00:21]} Ra3+ {[%emt 0:00:17]} 54. Kf2 {[%emt 0:00:23]} Kg4 {[%emt 0:07:17]} 0-1